Cogmind - Beta 11.1 @@@ ROGUE MODE // 2022.05.01 @ 02:15:30 Player: Olga Result: Destroyed self with Mini Grenade Launcher Performance ------------- Evolutions (2) 1000 Regions Visited (6) 1200 Robots Destroyed (104) 520 Value Destroyed (3373) 3373 Prototype IDs (4) 80 Alien Tech Used (0) 0 Bonus (628) 628 TOTAL SCORE: 6801 Bonus ------- High Alert Combat Kills 819 Follower Combat Kills 91 Friendly Fire -282 Cogmind --------- Core Integrity 0/550 Matter 107/300 Energy 159/160 System Corruption 10% Temperature Cool (4) Movement Treading (160) Location -8/Storage Parts ------- > --- POWER (1) -------- Light Nuclear Core > --- PROPULSION (4) --- Light Treads Improved Treads > --- UTILITY (4) ------ Large Storage Unit Improved Weapon Shielding Improved Light Armor Plating > --- WEAPON (2) ------- Heavy Assault Rifle Mini Grenade Launcher > --- INVENTORY (15) --- Light Treads Light Treads Improved Heat Sink Large Matter Pod (150) Structural Scanner Experimental Sensor Array Medium Armor Plating Drone Bay (2/2) Bomb Drone Bay Heavy Assault Rifle Heavy Assault Rifle Improved Assault Rifle Advanced EMP Blaster Peak State ------------ > --- POWER ------------ Improved Ion Engine > --- PROPULSION ------- Light Treads Improved Treads Improved Treads Improved Treads > --- UTILITY ---------- Large Storage Unit Medium Armor Plating Medium Armor Plating Medium Armor Plating > --- WEAPON ----------- Guided EMP Blaster > --- INVENTORY -------- Improved Ion Engine Light Treads Large Matter Pod Structural Scanner Experimental Sensor Array Improved Weapon Shielding Improved Light Armor Plating High-powered Tractor Beam Bomb Drone Bay EMP Blaster Advanced EMP Blaster Mini Grenade Launcher [Rating: 32] Favorites ----------- Power Ion Engine Engine Ion Engine Power Core Light Nuclear Core Propulsion Improved Treads Treads Improved Treads Leg Aluminum Leg Utility Large Storage Unit Device High-powered Tractor Beam Storage Large Storage Unit Protection Improved Light Armor Plating Weapon Heavy Assault Rifle Ballistic Gun Heavy Assault Rifle Ballistic Cannon Battle Cannon Launcher Mini Grenade Launcher Build | -11 -10 -10 -9 -9 -8 -8 ------- Run | Scr Mat Min Mat Min Mat Sto Slots Evolved 4 | . . . 2 . 2 . Power . | . . . . . . . Propulsion 2 | . . . 1 . 1 . Utility 2 | . . . 1 . 1 . Weapon . | . . . . . . . Parts Attached 80 | 1 8 2 8 5 28 28 Power 8 | . 1 1 1 . 3 2 Engine 6 | . 1 . 1 . 3 1 Core 2 | . . 1 . . . 1 Reactor . | . . . . . . . Propulsion 21 | . 4 . 3 2 4 8 Treads 21 | . 4 . 3 2 4 8 Leg . | . . . . . . . Wheel . | . . . . . . . Hover . | . . . . . . . Flight . | . . . . . . . Utility 26 | . 3 . 2 2 9 10 Device 8 | . 1 . . 1 2 4 Storage 3 | . 2 . . . 1 . Processor . | . . . . . . . Hackware . | . . . . . . . Protection 15 | . . . 2 1 6 6 Artifact . | . . . . . . . Weapon 25 | 1 . 1 2 1 12 8 Energy Gun . | . . . . . . . Energy Cannon . | . . . . . . . Ballistic Gun 11 | 1 . . 1 1 4 4 Ballistic Cannon 4 | . . 1 . . 3 . Launcher 10 | . . . 1 . 5 4 Special Weapon . | . . . . . . . Impact Weapon . | . . . . . . . Slashing Weapon . | . . . . . . . Piercing Weapon . | . . . . . . . Special Melee Weapon . | . . . . . . . Unidentified Prototypes 2 | . . . . . 1 1 Corrupted Parts 1 | . . . . . 1 . System Corruption 10 | . . . . . 10 . Parts Lost 29 | . . . 4 1 10 14 Power 4 | . . . 1 . 1 2 Propulsion 11 | . . . 2 1 4 4 Utility 11 | . . . 1 . 2 8 Weapon 3 | . . . . . 3 . Highest Loss Streak 5 | . . . 3 1 3 5 To Critical Strikes . | . . . . . . . Average Slot Usage (%) 93 | . 99 99 91 99 87 89 Engine 7 | . 14 2 2 11 9 5 Core 2 | . . 11 5 . . 2 Treads 29 | . 25 28 32 32 24 33 Device 11 | . 8 14 11 16 10 8 Storage 11 | . 18 14 11 11 9 9 Protection 9 | . . . 7 5 15 15 Ballistic Gun 12 | . 28 24 10 6 5 13 Ballistic Cannon 3 | . . 3 11 4 2 . Launcher 5 | . . . . 11 10 2 Naked Turns . | . . . . . . . Heaviest Build 49 | 11 29 31 35 35 49 49 Greatest Support 92 | 20 46 46 69 66 83 92 Greatest Overweight (x) 1 | . . . . . 1 . Average Overweight (x) . | . . . . . . . Largest Inventory Capacity 15 | 8 15 15 15 15 15 15 Average Capacity 14 | 8 11 15 15 15 15 15 Most Carried 15 | 6 15 15 15 15 15 15 Average Carried 13 | 6 8 15 14 14 14 14 Final Capacity 15 | 8 15 15 15 15 15 15 Final Carried 15 | 6 15 15 15 15 15 14 Class Distribution -------------------- 92% | Mutant 7% | Scavenger-Mutant Dominant Class ---------------- Mutant | -10/Materials Mutant | -10/Mines Mutant | -9/Materials Mutant | -9/Mines Mutant | -8/Materials Mutant | -8/Storage Resources | -11 -10 -10 -9 -9 -8 -8 ----------- Run | Scr Mat Min Mat Min Mat Sto Matter Collected 2488 | 206 19 121 586 105 740 711 Remotely 2248 | . . 121 586 105 740 696 Salvage Created 3314 | . 19 90 539 127 1448 1091 Parts 185 | . 3 8 35 13 72 54 Haulers Intercepted 1 | . . . 1 . . . Recyclers Shooed 5 | . . . 1 1 1 2 Parts Field Recycled . | . . . . . . . Retrieved Matter . | . . . . . . . Parts Self-Destructed . | . . . . . . . Prevented . | . . . . . . . Kills | -11 -10 -10 -9 -9 -8 -8 ------- Run | Scr Mat Min Mat Min Mat Sto Combat Hostiles Destroyed 83 | . . 2 17 6 31 27 Guns 28 | . . 2 9 1 3 13 Cannons 9 | . . . 8 . 1 . AOE 46 | . . . . 5 27 14 Classes Destroyed 13 | . 1 1 4 1 5 1 Worker 4 | . . . 2 . . 2 Builder 5 | . . . . . 3 2 Hauler 1 | . . . 1 . . . Recycler 6 | . . . . 1 3 2 Mechanic 1 | . . . . . 1 . Drone 2 | . . . . . . 2 Watcher 4 | . 1 . 1 . . 2 Swarmer 20 | . . . 7 6 3 4 Grunt 45 | . . 2 7 . 21 15 Brawler 2 | . . . . . 1 1 Duelist 2 | . . . . . 1 1 Sentry 13 | . . . 3 . 4 6 Hunter 1 | . . . . . 1 . Best Kill Streak 15 | . 1 2 9 4 15 12 Combat Bots Only 11 | . . 2 6 3 11 9 Max Kills in Single Turn 4 | . 1 1 2 2 4 4 Gunslinging . | . . . . . . . Exploded 4 | . . . . 2 4 3 Melee . | . . . . . . . Uniques/NPCs Destroyed . | . . . . . . . Combat | -11 -10 -10 -9 -9 -8 -8 -------- Run | Scr Mat Min Mat Min Mat Sto Damage Taken 5368 | . . 166 985 184 1451 2582 Core 722 | . . . 172 . 217 333 Absorbed by Shields . | . . . . . . . Redirected to Shielding 31 | . . . 4 . . 27 Core Remaining (%) 85 | 100 . 100 . 57 . . Volleys Fired 195 | . 1 7 46 10 51 80 Largest 2 | . 2 2 2 1 2 2 Hottest 66 | . 40 40 62 39 66 53 Shots Fired 327 | . 2 14 91 10 79 131 Gun 189 | . 2 14 45 5 28 95 Cannon 55 | . . . 45 1 9 . Launcher 83 | . . . 1 4 42 36 Special . | . . . . . . . Kinetic 244 | . 2 14 90 6 37 95 Thermal . | . . . . . . . Explosive 72 | . . . 1 4 31 36 Electromagnetic 11 | . . . . . 11 . Robot Hit Streak 15 | . 1 7 15 3 12 14 Robot Miss Streak 3 | . . 1 2 3 2 3 Penetration Max . | . . . . . . . Secondary Targets 2 | . . 1 . . . 1 Max Gunslinging Chain 1 | . . 1 . . . 1 Shots Hit Robots 204 | . 1 11 53 6 38 95 Core Hits 181 | . 1 4 24 8 71 73 Critical Kills . | . . . . . . . Critical Parts Destroyed 3 | . . . 2 . . 1 Critical Strikes 6 | . . . 4 . 1 1 Destroy 3 | . . . 2 . . 1 Blast 3 | . . . 2 . 1 . Melee Attacks . | . . . . . . . Impact . | . . . . . . . Slashing . | . . . . . . . Piercing . | . . . . . . . Sneak Attacks . | . . . . . . . Combat Hostiles . | . . . . . . . Follow-up Attacks . | . . . . . . . Damage Inflicted 8459 | . 14 116 1020 387 3285 3637 Guns 2052 | . 14 116 468 40 236 1178 Cannons 676 | . . . 552 . 124 . Explosions 5721 | . . . . 347 2925 2449 Melee . | . . . . . . . Ramming 10 | . . . . . . 10 Kinetic 2728 | . 14 116 1020 40 360 1178 Thermal 166 | . . . . . 166 . Explosive 4741 | . . . . 347 1945 2449 Electromagnetic 814 | . . . . . 814 . Impact . | . . . . . . . Slashing . | . . . . . . . Piercing . | . . . . . . . Highest Corruption 10 | . . . . . 10 10 Average Corruption 10 | . . . . . 10 10 Corruption Purged . | . . . . . . . Corruption Blocked . | . . . . . . . Effects 32 | . . . . . 7 25 Message Errors 12 | . . . . . 6 6 Matter Fused 7 | . . . . . 1 6 Heat Flow Errors 3 | . . . . . . 3 Energy Discharges 4 | . . . . . . 4 Data Loss (minor) 4 | . . . . . . 4 Alerts 1 | . . . . . . 1 Weapon Failures 1 | . . . . . . 1 Overload Shots . | . . . . . . . Overflow Damage 347 | . . . 9 38 80 220 Projectiles 9 | . . . 9 . . . Explosions 338 | . . . . 38 80 220 Melee . | . . . . . . . Knockbacks 14 | . . . 12 . 2 . Impact . | . . . . . . . Kinetic 11 | . . . 9 . 2 . Secondary 3 | . . . 3 . . . Self-Inflicted Damage 863 | . . . 24 96 140 603 Shots 23 | . . . 1 2 5 15 Rammed 3 | . . . . . . 3 Targets Rammed 3 | . . . . . . 3 Kicked . | . . . . . . . Crushed . | . . . . . . . Highest Temperature 269 | . . 19 15 . 47 269 Average Temperature 23 | . . 11 5 . 12 37 Received Heat Transfer 1827 | . . 93 420 . 468 846 Siege Activations . | . . . . . . . Robots Corrupted . | . . . . . . . Combat Hostiles . | . . . . . . . Parts Fried 1 | . . . . . 1 . Impact Corruptions . | . . . . . . . Robots Melted . | . . . . . . . Combat Hostiles . | . . . . . . . Parts Melted . | . . . . . . . Heat Transferred 250 | . . . . . 250 . Parts Sabotaged . | . . . . . . . Parts Stolen . | . . . . . . . Parts Stripped . | . . . . . . . Power Chain Reactions 4 | . . . . . 4 . Missiles Intercepted . | . . . . . . . Alert | -11 -10 -10 -9 -9 -8 -8 ------- Run | Scr Mat Min Mat Min Mat Sto Peak Influence 1007 | . 22 73 454 408 1007 917 Initial 425 | . . 8 27 144 80 425 Average 380 | . 18 64 181 282 659 630 Maximum Alert Level 3 | . . . 2 2 3 3 Low Security (%) 34 | 100 100 100 53 11 10 . Level 1 19 | . . . 33 64 12 . Level 2 24 | . . . 13 24 27 51 Level 3 22 | . . . . . 49 48 Level 4 . | . . . . . . . Level 5 . | . . . . . . . High Security . | . . . . . . . Max Security . | . . . . . . . Squads Dispatched 17 | . . . 2 . 9 6 Investigation 4 | . . . 1 . 2 1 Extermination . | . . . . . . . Reinforcement 6 | . . . 1 . 3 2 Assault 1 | . . . . . 1 . Garrison 6 | . . . . . 3 3 Intercept . | . . . . . . . Searches Triggered . | . . . . . . . Construction Impeded 2 | . . . . . 1 1 Haulers Reinforced . | . . . . . . . Active Scanning Responses . | . . . . . . . Cargo Convoy Interrupts . | . . . . . . . Stealth | -11 -10 -10 -9 -9 -8 -8 --------- Run | Scr Mat Min Mat Min Mat Sto Distress Signals 12 | . . . 4 . 2 6 Communications Jammed . | . . . . . . . Distress Signals . | . . . . . . . Times Spotted 115 | . 3 2 25 6 43 36 Peak Tracking Total 8 | . 2 2 7 3 6 8 Tactical Retreats 5 | . . . 2 . 2 1 Traps | -11 -10 -10 -9 -9 -8 -8 ------- Run | Scr Mat Min Mat Min Mat Sto Traps Triggered 3 | . . . 1 . 1 1 Indirectly . | . . . . . . . Trap Hack Attempts . | . . . . . . . Triggered . | . . . . . . . Disarmed . | . . . . . . . Reprogrammed . | . . . . . . . Reused . | . . . . . . . Traps Extracted . | . . . . . . . Installed . | . . . . . . . Triggered . | . . . . . . . Machines | -11 -10 -10 -9 -9 -8 -8 ---------- Run | Scr Mat Min Mat Min Mat Sto Machines Disabled 16 | . . . 1 . 6 9 Max in Single Turn 2 | . . . 1 . 2 1 Machines Sabotaged . | . . . . . . . Garrisons Compromised . | . . . . . . . Overloaded Fab Kills . | . . . . . . . Hacking | -11 -10 -10 -9 -9 -8 -8 --------- Run | Scr Mat Min Mat Min Mat Sto Machines Accessed 13 | . . . 3 1 1 8 Terminals 10 | . . . 3 . . 7 Fabricators . | . . . . . . . Repair Stations . | . . . . . . . Recycling Units . | . . . . . . . Scanalyzers . | . . . . . . . Garrison Access 2 | . . . . . 1 1 Total Hacks 32 | . . . 7 1 2 22 Successful 13 | . . . 2 1 . 10 Failed 19 | . . . 5 . 2 12 Catastrophic 5 | . . . 1 . 1 3 Database Lockouts . | . . . . . . . Manual 11 | . . . 3 . . 8 Terminals 24 | . . . 7 . . 17 Fabricators . | . . . . . . . Repair Stations . | . . . . . . . Recycling Units . | . . . . . . . Scanalyzers . | . . . . . . . Garrison Access 7 | . . . . . 2 5 Terminal Hacks 13 | . . . 2 1 . 10 Prototype ID Bank 1 | . . . . . . 1 Open Door 4 | . . . . 1 . 3 Branch Access Points 1 | . . . 1 . . . Alert Level 1 | . . . . . . 1 Unreport Threat 3 | . . . 1 . . 2 Zone Layout 3 | . . . . . . 3 Fabricator Hacks . | . . . . . . . Repair Station Hacks . | . . . . . . . Recycling Unit Hacks . | . . . . . . . Scanalyzer . | . . . . . . . Garrison Access Hacks . | . . . . . . . Unauthorized Hacks . | . . . . . . . Terminals . | . . . . . . . Fabricators . | . . . . . . . Repair Stations . | . . . . . . . Recycling Units . | . . . . . . . Scanalyzers . | . . . . . . . Garrison Access . | . . . . . . . Data Cores Recovered . | . . . . . . . Used . | . . . . . . . Hacking Detections 10 | . . . 2 . 1 7 Full Trace Events 2 | . . . . . 1 1 Feedback Events . | . . . . . . . Feedback Blocked . | . . . . . . . Robot Schematics Acquired . | . . . . . . . Robots Built . | . . . . . . . Authchips . | . . . . . . . Time . | . . . . . . . Total Robot Build Rating . | . . . . . . . Part Schematics Acquired . | . . . . . . . Parts Built . | . . . . . . . Authchips . | . . . . . . . Time . | . . . . . . . Total Part Build Rating . | . . . . . . . Parts Repaired . | . . . . . . . Time . | . . . . . . . Parts Recycled . | . . . . . . . Recycled Matter . | . . . . . . . Retrieved Matter . | . . . . . . . Retrieved Components . | . . . . . . . Parts Scanalyzed . | . . . . . . . Part Schematics Acquired . | . . . . . . . Parts Damaged . | . . . . . . . Bothacking | -11 -10 -10 -9 -9 -8 -8 ------------ Run | Scr Mat Min Mat Min Mat Sto Used RIF Installer . | . . . . . . . Robots Hacked . | . . . . . . . Non-combat . | . . . . . . . Combat . | . . . . . . . Robot Hacks Applied . | . . . . . . . Relay Couplers Released . | . . . . . . . Fabnet Peak Effective % . | . . . . . . . Robots Rewired . | . . . . . . . Allies Hacked . | . . . . . . . Hacks Repelled . | . . . . . . . Allies | -11 -10 -10 -9 -9 -8 -8 -------- Run | Scr Mat Min Mat Min Mat Sto Total Allies 3 | . . . . 3 . . Largest Group 3 | . . . . 3 3 . Highest-Rated Group 40 | . . . . 40 40 . Highest-Rated Ally 16 | . . . . 16 16 . Total Orders 21 | . . . . . . 21 EXPLORE 21 | . . . . . . 21 Ally Attacks 28 | . . . . . 28 . Total Damage 340 | . . . . . 340 . Kills 7 | . . . . . 7 . Allies Corrupted 1 | . . . . . . 1 Allies Melted . | . . . . . . . Intel | -11 -10 -10 -9 -9 -8 -8 ------- Run | Scr Mat Min Mat Min Mat Sto Robot Analysis Total . | . . . . . . . Derelict Logs Recovered 3 | . . 1 . 2 . . Drone Launches 26 | . . . . . . 26 Drone Recoveries 14 | . . . . . . 14 Exploration | -11 -10 -10 -9 -9 -8 -8 ------------- Run | Scr Mat Min Mat Min Mat Sto Turns Passed 3183 | 7 371 323 451 576 749 706 Spaces Moved 1480 | 5 215 170 179 335 334 242 Core . | . . . . . . . Treads 1458 | . 198 170 179 335 334 242 Legs 22 | 5 17 . . . . . Wheels . | . . . . . . . Hover . | . . . . . . . Flight . | . . . . . . . Fastest Speed 120 | 120 120 160 160 160 160 160 Average Speed 160 | 120 156 160 160 160 164 160 Slowest Speed 240 | 120 160 160 160 160 240 160 Overloaded Moves . | . . . . . . . Propulsion Burnouts . | . . . . . . . Robots Hopped . | . . . . . . . Cave-ins Triggered . | . . . . . . . Exploration Rate (%) 41 | 2 31 44 23 71 34 86 Regions Visited 6 Branch Regions 3 Pre-discovered Areas 1 | . . . . 1 . . Known Exits Taken 1 | . . . 1 . . . Unknown Exits Taken 5 | 1 1 1 . 1 1 . Scrap Searched 2 | . . 1 . 1 . . Spaces Dug . | . . . . . . . Terrain Destroyed 510 | . . . 12 49 204 245 Melee . | . . . . . . . Projectile 4 | . . . 2 1 1 . AOE 506 | . . . 10 48 203 245 Terrain Rammed . | . . . . . . . Walls Destroyed . | . . . . . . . Machines Disabled . | . . . . . . . Actions | -11 -10 -10 -9 -9 -8 -8 --------- Run | Scr Mat Min Mat Min Mat Sto Total 1964 | 5 247 209 253 365 457 428 Wait 120 | . 4 27 11 8 17 53 Move 1474 | 4 214 169 178 334 333 242 Hop . | . . . . . . . Pick Up 45 | . 13 1 6 4 13 8 Fast Attach 17 | . 1 2 2 1 5 6 Attach 23 | . . . 4 1 8 10 Detach 1 | . . . . . 1 . Swap 40 | 1 7 . 2 3 15 12 Drop 40 | . 7 3 4 4 14 8 Fire 195 | . 1 7 46 10 51 80 Melee . | . . . . . . . Ram . | . . . . . . . Kick . | . . . . . . . Crush 3 | . . . . . . 3 Escape Stasis . | . . . . . . . Rewire . | . . . . . . . Trap . | . . . . . . . Miscellaneous 6 | . . . . . . 6 Route ------- -11/Scrapyard -10/Materials (discovered 2 exits: [*Min x2]) -10/Mines -9/Materials (discovered 2 exits: *Min x2) -9/Mines (discovered 2 exits: *Mat x2) -8/Materials -8/Storage (discovered 1 exit: [*Fac]) History --------- Turn | Location | Event 3 | -11/Scrapyard | Discovered new exit (range 3) 8 | -11/Scrapyard | Entered Materials 49 | -10/Materials | Discovered new exit (range 15) 313 | -10/Materials | Build established: Mutant 365 | -10/Materials | Discovered new exit (range 16) 379 | -10/Materials | Entered Mines 454 | -10/Mines | Met a Derelict bent on vengeance 512 | -10/Mines | Learned Materials terminal intel 614 | -10/Mines | A weapon hastily lodged in a ceiling crevice suddenly fell to the ground 692 | -10/Mines | Discovered new exit (range 6) 702 | -10/Mines | Entered Materials 702 | -9/Materials | Evolved 2 slots: Propulsion x1, Utility x1 703 | -9/Materials | Loaded intel: 12 terminal locations 774 | -9/Materials | Identified exit to Mines 1050 | -9/Materials | Lost 3 parts (2n1u) 1153 | -9/Materials | Entered Mines 1161 | -9/Mines | Found the Drone Emporium 1170 | -9/Mines | Found Prototype Device 1256 | -9/Mines | Learned location of Zion (-6) 1383 | -9/Mines | Found a damaged Exp. Sensor Array with a note attached 1387 | -9/Mines | Found Prototype Device 1451 | -9/Mines | Discovered new exit (range 9) 1521 | -9/Mines | Learned 2 Materials zone layouts 1545 | -9/Mines | Assisted by bots powering up and referring to "LRC-V3" 1711 | -9/Mines | Discovered new exit (range 7) 1729 | -9/Mines | Entered Materials 1729 | -8/Materials | Accompanied by 3 allies 1729 | -8/Materials | Evolved 2 slots: Propulsion x1, Utility x1 1908 | -8/Materials | Garrison activated, responded to threat 2005 | -8/Materials | Lost 3 parts (1u2w) 2129 | -8/Materials | First assault squad dispatched 2242 | -8/Materials | Destroyed 11 combat bots 2260 | -8/Materials | System corruption reached 10% 2405 | -8/Materials | Discovered new exit (range 15) 2478 | -8/Materials | Entered Storage 2717 | -8/Storage | Garrison activated, responded to threat 2730 | -8/Storage | Core integrity fell below 50% 2793 | -8/Storage | Lost 5 parts (1n4u) 2887 | -8/Storage | Destroyed 9 combat bots 3074 | -8/Storage | Core integrity fell below 20% 3130 | -8/Storage | Discovered new exit (range 39) 3184 | -8/Storage | Destroyed self with Mini Grenade Launcher Last Messages --------------- 03148_ Door Terminal disabled. 03148_ K-01 Serf destroyed. 03148_ Drone destroyed. 03154_ Critical hit (Burn: +37). 03156_ The unstable cave ceiling collapses. 03163_ System corrupted: Matter fused (-6). 03165_ Acquired 7 matter. 03168_ The unstable cave ceiling collapses. 03169_ G-47 Trooper destroyed. 03171_ Critical hit (Burn: +37). 03172_ Lgt. Treads destroyed. 03172_ Destroyed Lgt. Treads. 03174_ Drone Bay destroyed. 03175_ The unstable cave ceiling collapses. 03175_ B-36 Bruiser destroyed. 03178_ The unstable cave ceiling collapses. 03178_ Destroyed Tractor Beam. 03178_ R-06 Scavenger destroyed. 03179_ The unstable cave ceiling collapses. 03181_ W-25 Informer destroyed. Map ----- +----------------------------------------------------+ | | | | | | | ?????????????????????????????????????????????????? | | ?????????????????????????????????????????????????? | | ?????????????????????????????????????????????????? | | ??###?####???????????????????????????????????????? | | # #???????????????????????????????????????? | | #""" """ #???????????????????????????????????????? | | #"R """ ##??????????????????????????????????????? | | #""" """ ???????????????????????????????????????? | | # #???????????????????????????????????????? | | # """ #???????????????????????????????????????? | | # """ #??###########??????????????????????????? | | # """ #??# #??????????????????????????? | | # #??# #??????????????????????????? | | #####+#####?# #??????????????????????????? | | #?# #??????????????????????????? | | #?# #??????????????????????????? | | #?# #?####?????????????????????? | | ####### #?# ### ##????????????????????? | | ??????#% #?# ####?##?#????????????? | | ####### #?#### # ## # # ###????????? | | # #??## ! # # #????????? | | # #### Y # #????????? | | [ + % % %@ #!!!! #????????? | | # ##### Y #???????? | | ""# #???## # !! #= #???????? | | Y"# #????# ## # ! ##???????? | | ""# #????### """"" # ## # #????????? | | # #??????# " " # #### %!%%##????????? | | #"T"### #??????# """"" + r % %!! #?????????? | | #"""#?# #??????# """"" # =[[ #?????????? | | #####?# #??????# "[[ " # #?????????? | | ??????# #??????# """ # #### #?????????? | | ??????# #??????# # #??## ##?????????? | | ??????# #??????# # #???# ############ | | ??????# #??????##### #/########## #[ ^^ | | ??????# #??????????### # #[= # """"" | | ??????+ #????????????# # """ +%[ + """"" | | ??????### #????????????# # """ #[! # """"" | | ??????#?# #????????????# # """ # # | | ????????# #????###?##### #/// # ############ | | #######?# ###### #?#"""# #/// """ # # ?? | | #?# # / ###"T"# #/// """ # # """ """ ?? | | """" #?# # + # """ # # """ """ #? | | """" #?# # """ # # # # """ """ #? | | """" #?# # """ # ########## # #? | | """" #?# + """ + T#?# # # #? | | #?# # # ##?# # + #? | +----------------------------------------------------+ Best States ------------- Heat Dissipation 45 Energy Generation 14 Energy Capacity 265 Matter Stores 300 Matter Capacity 450 Sight Range 16 Terrain Scan Density 10 Armor Coverage 675 Weapon Shielding 66 Evasion (%) 50 Recoil Reduction 4 Item Schematics ----------------- None Robot Schematics ------------------ None Fabricated ------------ Nothing Alien Tech Used ----------------- None Achievements -------------- None Challenges ------------ None Game ------ Seed XenonCouplerStorage Manual? 0 Play Time 00:41:25 Cumulative 136.8 hours Start 2022.05.01 @ 01:37:31 End 2022.05.01 @ 02:15:30 Sessions 1 Manual Loads 0 Difficulty Rogue Special Mode None Game No. 185 Rogue 184 Adventurer 0 Explorer 1 Win Type - Total 5 Types 5/0/0/0/0/0/0/0/0 Lore% 59 Gallery% 60 Achievement% 50 Wizard Run 0 Options --------- ASCII 1 Keyboard 0 Movement Vi Keybinds 0 Fullscreen 1 Font 18/SmallcapsGlow Map View 76x50 Tactical HUD 1 Map Filters NONE Filters NONE Steam 1 RUN: 8cc1428d-3742-41a4-aa04-5218a2f211e1